bitfinex-derivatives/quotes_SOLF0:USTF0_20241120
["timestamp","ask_amount","ask_price","bid_price","bid_amount"]
[1732101054171,3.9,236.05,236.01,250.7548513]
[1732101054913,1.0,236.05,236.01,250.7548513]
[1732101056426,16.50826878,236.02,235.52,7.70411816]
[1732101056869,47.00826878,236.04,235.61,16.50826878]
[1732101056870,16.50826878,235.82,235.61,16.50826878]
[1732101056888,3.14,235.81,235.61,16.50826878]
[1732101057494,16.50826878,235.78,235.57,19.64826878]
[1732101057699,16.50826878,235.78,235.57,16.50826878]
[1732101059262,3.14,235.77,235.61,16.50826878]
[1732101059600,3.14,235.77,235.62,3.14]
[1732101060219,16.50826878,235.82,235.62,3.14]
[1732101060660,3.14,235.81,235.65,16.50826878]
[1732101060682,16.50826878,235.86,235.66,1.224]
[1732101061099,3.14,235.85,235.67,1.2076]
[1732101061119,3.14,235.85,235.69,16.50826878]
[1732101061639,3.14,235.85,235.7,4.3757]
[1732101063388,3.14,235.85,235.7,1.2357]
[1732101067444,16.50826878,235.83,235.7,1.2357]
[1732101069006,3.14,235.82,235.7,1.2357]
[1732101071477,16.50826878,235.79,235.67,1.2076]
[1732101074108,16.50826878,235.75,235.47,3.14]
[1732101074301,16.50826878,235.75,235.58,1.3155]
[1732101074302,3.14,235.74,235.58,1.3155]
[1732101074952,16.50826878,235.71,235.58,1.3155]
[1732101075426,4.3523,235.74,235.58,1.3155]
[1732101075427,16.50826878,235.66,235.58,1.3155]
[1732101075633,3.14,235.65,235.58,1.3155]
[1732101076321,16.50826878,235.62,235.57,1.03211]
[1732101077696,3.14,235.65,235.57,1.03211]
[1732101080229,3.14,235.66,235.57,1.03211]
[1732101080459,3.14,235.69,235.58,1.2872]
[1732101081477,18.96566878,235.8,235.58,1.2872]
[1732101081488,16.50826878,235.75,235.58,1.2872]
[1732101081767,16.50826878,235.71,235.58,1.2872]
[1732101082015,3.14,235.7,235.58,1.2872]
[1732101083013,3.14,235.75,235.59,16.50826878]
[1732101083520,19.64826878,235.75,235.58,1.2872]
[1732101085602,16.50826878,235.75,235.58,1.2872]
[1732101085903,17.75686878,235.8,235.59,16.50826878]
[1732101086112,3.14,235.75,235.59,19.64826878]
[1732101086300,17.75686878,235.8,235.59,19.64826878]
[1732101086959,3.0,235.79,235.59,19.64826878]
[1732101087196,3.0,235.79,235.59,3.14]
[1732101087386,3.0,235.79,235.58,1.2872]
[1732101087557,16.50826878,235.74,235.58,1.2872]
[1732101087818,3.0,235.73,235.58,1.2872]
[1732101089212,3.0,235.73,235.59,16.50826878]
[1732101089464,3.0,235.76,235.59,16.50826878]
[1732101090805,3.0,235.76,235.6,3.0]
[1732101091054,3.0,235.76,235.58,1.2872]
[1732101092704,16.50826878,235.7,235.58,1.2872]
[1732101092936,3.0,235.69,235.58,1.2872]
[1732101093115,16.50826878,235.66,235.58,1.2872]
[1732101094045,16.50826878,235.66,235.52,2.4994]
[1732101095829,16.50826878,235.66,235.52,1.2878]
[1732101100183,16.50826878,235.66,235.51,1.2278]
[1732101101439,16.50826878,235.62,235.49,1.10047]
[1732101101452,3.0,235.61,235.49,1.10047]
[1732101103129,16.50826878,235.66,235.49,1.10047]
[1732101103312,2.4768,235.68,235.49,1.10047]
[1732101103313,3.0,235.65,235.49,1.10047]
[1732101105015,2.4768,235.68,235.49,1.10047]
[1732101105335,3.02,235.67,235.49,1.10047]
[1732101106119,3.02,235.66,235.49,1.10047]
[1732101107234,19.52826878,235.66,235.49,1.10047]
[1732101110221,16.50826878,235.66,235.49,1.10047]
[1732101110523,3.02,235.65,235.49,1.10047]
[1732101112327,16.50826878,235.62,235.49,1.10047]
[1732101113744,16.50826878,235.62,235.43,2.4375]
[1732101114351,4.02,235.65,235.36,16.50826878]
[1732101114352,16.50826878,235.58,235.36,16.50826878]
[1732101114656,5.5759,235.57,235.37,1.214]
[1732101114933,16.50826878,235.54,235.36,16.50826878]
[1732101115231,16.50826878,235.5,235.33,1.2824]
[1732101115437,3.02,235.49,235.25,3.02]
[1732101115633,3.02,235.49,235.28,16.50826878]
[1732101116125,3.02,235.49,235.19,23.36716112]
[1732101116319,3.02,235.49,235.2,5.3836]
[1732101116543,3.02,235.49,235.28,16.50826878]
[1732101116836,3.02,235.49,235.39,1.22475]
[1732101117417,16.50826878,235.5,235.39,1.22475]
[1732101117748,2.88,235.49,235.39,1.22475]
[1732101120126,16.50826878,235.54,235.39,1.22475]
[1732101120438,2.88,235.53,235.39,1.22475]
[1732101120749,2.88,235.52,235.39,1.22475]
[1732101121462,2.5559,235.57,235.4,16.50826878]
[1732101121853,2.5559,235.57,235.44,16.50826878]
[1732101121854,2.88,235.56,235.44,16.50826878]
[1732101122238,1.0,235.61,235.44,16.50826878]
[1732101122560,2.88,235.62,235.48,16.50826878]
[1732101123158,2.88,235.62,235.45,3.7991]
[1732101124653,2.88,235.62,235.42,2.88]
[1732101124880,16.50826878,235.59,235.4,16.50826878]
[1732101125926,2.88,235.58,235.4,16.50826878]
[1732101127048,16.50826878,235.62,235.4,16.50826878]
[1732101127238,2.88,235.61,235.4,16.50826878]
[1732101128745,16.50826878,235.59,235.39,1.22475]
[1732101128946,16.50826878,235.49,235.39,1.22475]
[1732101129234,5.2856,235.48,235.39,1.22475]
[1732101134130,16.50826878,235.47,235.39,1.22475]
[1732101135547,16.50826878,235.47,235.27,16.50826878]
[1732101136135,16.50826878,235.47,235.15,23.36716112]
[1732101136346,16.50826878,235.47,235.23,16.50826878]
[1732101138674,10.39324857,235.43,235.27,10.39324857]
[1732101138905,2.88,235.44,235.33,10.39324857]
[1732101139353,2.88,235.44,235.29,2.5057]
[1732101139681,13.27324857,235.44,235.31,10.39324857]
[1732101139945,2.88,235.44,235.31,10.39324857]
[1732101140341,2.88,235.44,235.34,10.39324857]
[1732101140860,2.88,235.47,235.34,10.39324857]
[1732101140872,1.2088,235.48,235.34,16.61726143]
[1732101141190,2.88,235.54,235.38,16.61726143]
[1732101141199,2.88,235.54,235.39,5.3207]
[1732101141562,2.88,235.54,235.4,1.318]
[1732101141952,1.2864,235.53,235.4,1.318]
[1732101142436,1.2864,235.53,235.35,1.2301]
[1732101142836,2.5095,235.53,235.35,1.2301]
[1732101143449,2.5095,235.53,235.32,16.61726143]
[1732101143748,2.5095,235.53,235.33,1.2301]
[1732101144254,2.5095,235.53,235.35,16.61726143]
[1732101144497,1.2864,235.53,235.39,16.61726143]
[1732101144699,2.88,235.54,235.4,16.61726143]
[1732101146659,2.88,235.54,235.39,2.88]
[1732101147208,2.88,235.54,235.4,16.61726143]
[1732101147653,2.88,235.54,235.39,2.88]
[1732101149758,2.88,235.54,235.4,16.61726143]
[1732101150785,2.88,235.56,235.4,16.61726143]
[1732101151500,2.88,235.56,235.39,2.88]
[1732101151761,3.88,235.58,235.45,16.61726143]
[1732101151961,3.88,235.58,235.46,1.2601]
[1732101152157,1.0,235.58,235.47,2.88]
[1732101152368,10.07288535,235.61,235.49,16.61726143]
[1732101152562,2.88,235.63,235.49,16.61726143]
[1732101152865,17.90519909,235.62,235.49,16.61726143]
[1732101153061,2.88,235.63,235.49,16.61726143]
[1732101153258,17.9045953,235.62,235.49,16.61726143]
[1732101153458,2.88,235.63,235.49,16.61726143]
[1732101153662,10.07313113,235.62,235.49,16.61726143]
[1732101153902,10.07313113,235.62,235.47,1.1963]
[1732101154168,9.10813213,235.61,235.47,1.1963]
[1732101154362,10.07313113,235.6,235.47,1.1963]
[1732101154586,7.83273213,235.61,235.47,1.1963]
[1732101154760,2.88,235.65,235.47,1.1963]
[1732101154968,17.91389044,235.64,235.47,1.1963]
[1732101155174,2.88,235.65,235.47,1.1963]
[1732101155368,17.91552858,235.64,235.47,1.1963]
[1732101155563,2.88,235.65,235.47,1.1963]
[1732101155762,17.91570435,235.64,235.47,1.1963]
[1732101155960,10.07806752,235.63,235.47,1.1963]
[1732101156155,16.61726143,235.63,235.47,1.1963]
[1732101156361,17.91546106,235.62,235.47,1.1963]
[1732101156678,16.61726143,235.63,235.47,1.1963]
[1732101156960,10.07796269,235.62,235.47,1.1963]
[1732101160924,10.37744585,235.61,235.47,1.1963]
[1732101161097,2.88,235.62,235.49,10.37744585]
[1732101162565,2.88,235.62,235.47,1.1963]
[1732101162764,2.88,235.62,235.47,11.57374585]
[1732101165982,2.88,235.62,235.48,10.37744585]
[1732101166275,10.37744585,235.6,235.47,1.1963]
[1732101166874,10.37744585,235.57,235.47,1.1963]
[1732101167427,10.37744585,235.6,235.47,1.1963]
[1732101168683,10.07288457,235.59,235.47,1.1963]
[1732101169576,10.37744585,235.6,235.47,1.1963]
[1732101170176,2.88,235.59,235.47,1.1963]
[1732101170380,12.95239581,235.59,235.47,1.1963]
[1732101170578,2.88,235.59,235.47,1.1963]
[1732101170886,10.07213261,235.58,235.46,1.2601]
[1732101171372,10.07213261,235.58,235.46,11.63754585]
[1732101171634,2.88,235.59,235.46,11.63754585]
[1732101172071,10.07203746,235.58,235.46,11.63754585]
[1732101172478,2.88,235.59,235.46,11.63754585]
[1732101173596,2.88,235.59,235.46,1.2601]
[1732101173822,10.37744585,235.56,235.46,1.2601]
[1732101174051,13.25744585,235.59,235.46,1.2601]
[1732101174167,17.89664659,235.58,235.46,1.2601]
[1732101174479,13.25744585,235.59,235.46,1.2601]
[1732101174875,10.06715568,235.58,235.46,1.2601]
[1732101175878,13.25744585,235.59,235.46,1.2601]
[1732101176274,12.78787623,235.58,235.46,1.2601]
[1732101176581,2.72,235.58,235.46,1.2601]
[1732101181142,233.78677,235.71,235.48,10.37744585]
[1732101181485,12.69,235.76,235.48,10.37744585]
[1732101181486,13.09744585,235.64,235.48,10.37744585]
[1732101181609,13.09744585,235.64,235.51,10.37744585]
[1732101181778,10.07935213,235.63,235.51,10.37744585]
[1732101181987,10.07935213,235.63,235.48,10.37744585]
[1732101182179,10.37744585,235.57,235.46,1.2601]
[1732101182395,13.09744585,235.57,235.46,1.2601]
[1732101182603,2.72,235.57,235.46,11.63754585]
[1732101182872,2.72,235.57,235.46,1.2601]
[1732101183487,2.72,235.57,235.46,11.63754585]
[1732101183671,2.72,235.57,235.32,25.59976759]
[1732101183890,10.08359366,235.56,235.43,10.37744585]
[1732101184077,2.72,235.57,235.44,1.2054]
[1732101184414,17.9310287,235.56,235.5,10.37744585]
[1732101184685,2.72,235.57,235.5,10.37744585]
[1732101184897,2.72,235.57,235.45,2.4404]
[1732101185084,2.72,235.57,235.48,10.37744585]
[1732101185394,2.72,235.57,235.45,2.4404]
[1732101185674,2.72,235.57,235.45,12.81784585]
[1732101187517,17.94755435,235.56,235.45,12.81784585]
[1732101187688,17.94755435,235.56,235.44,1.2054]
[1732101187689,10.09617923,235.55,235.44,1.2054]
[1732101187879,10.37744585,235.54,235.39,10.37744585]
[1732101188083,10.09617923,235.53,235.39,10.37744585]
[1732101188417,10.09617923,235.53,235.33,3.7666]
[1732101188451,10.37744585,235.48,235.33,3.7666]
[1732101188981,12.81617923,235.47,235.33,3.7666]
[1732101189002,10.09617923,235.46,235.33,3.7666]
[1732101189044,10.09617923,235.46,235.39,10.37744585]
[1732101189443,1.0,235.52,235.39,10.37744585]
[1732101189455,2.72,235.51,235.39,10.37744585]
[1732101189803,10.09397065,235.5,235.39,10.37744585]
[1732101189820,10.09397065,235.5,235.33,3.7666]
[1732101190215,10.09397065,235.5,235.4,10.37744585]
[1732101190687,2.72,235.51,235.4,10.37744585]
[1732101190884,10.09329309,235.5,235.4,10.37744585]
[1732101191100,2.72,235.51,235.4,10.37744585]
[1732101191283,2.72,235.51,235.43,10.37744585]
[1732101191795,2.72,235.51,235.38,2.72]
[1732101192000,2.72,235.51,235.43,10.37744585]
[1732101193996,1.2539,235.55,235.43,10.37744585]
[1732101194260,3.9739,235.55,235.43,10.37744585]
[1732101194436,3.9739,235.55,235.44,1.2479]
[1732101195488,10.37744585,235.62,235.44,1.2479]
[1732101195702,2.72,235.59,235.45,1.2698]
[1732101195889,2.72,235.59,235.46,10.37744585]
[1732101196189,13.09744585,235.59,235.46,10.37744585]
[1732101196499,10.09981844,235.58,235.45,1.2698]
[1732101197487,7.85349436,235.57,235.45,1.2698]
[1732101197686,10.09981844,235.56,235.45,1.2698]
[1732101198301,13.09744585,235.59,235.45,1.2698]
[1732101198516,17.95927915,235.58,235.45,1.2698]
[1732101198790,1.2127,235.62,235.49,10.37744585]
[1732101199089,2.72,235.59,235.49,10.37744585]
[1732101199288,17.96147724,235.58,235.49,10.37744585]
[1732101199493,2.72,235.59,235.49,10.37744585]
[1732101199786,10.10444224,235.58,235.45,5.2885]
[1732101199988,10.10444224,235.58,235.49,10.37744585]
[1732101200838,10.10444224,235.58,235.46,10.37744585]
[1732101201102,7.8587784,235.57,235.46,10.37744585]
[1732101201463,10.10444224,235.56,235.46,10.37744585]
[1732101201835,13.09744585,235.59,235.44,1.2479]
[1732101201846,10.37744585,235.56,235.41,10.37744585]
[1732101202100,17.96122926,235.55,235.41,10.37744585]
[1732101202317,17.96122926,235.54,235.41,10.37744585]
[1732101202530,12.82365842,235.53,235.41,10.37744585]
[1732101202616,10.10365842,235.52,235.38,11.66334585]
[1732101202896,7.85382891,235.51,235.38,11.66334585]
[1732101203092,10.10365842,235.5,235.38,11.66334585]
[1732101203489,10.10365842,235.49,235.38,11.66334585]
[1732101203819,1.3108,235.52,235.38,11.66334585]
[1732101203988,27.75178886,235.52,235.38,11.66334585]
[1732101204190,10.37744585,235.5,235.38,1.2859]
[1732101204486,17.94724378,235.49,235.38,1.2859]
[1732101204691,10.09577115,235.48,235.38,1.2859]
[1732101204897,2.72,235.47,235.38,1.2859]
[1732101206000,2.68,235.5,235.4,10.37744585]
[1732101206399,2.68,235.51,235.43,10.37744585]
[1732101207107,10.09212338,235.5,235.43,10.37744585]
[1732101207803,10.09212338,235.5,235.4,10.37744585]
[1732101208192,7.85502468,235.49,235.4,10.37744585]
[1732101208599,10.1007429,235.48,235.4,10.37744585]
[1732101208819,2.68,235.51,235.4,10.37744585]
[1732101208988,17.9570706,235.5,235.4,10.37744585]
[1732101209296,2.68,235.51,235.4,10.37744585]
[1732101209621,2.68,235.57,235.44,10.37744585]
[1732101209816,17.96391418,235.56,235.44,10.37744585]
[1732101210112,17.96391418,235.56,235.4,1.2063]
[1732101210113,17.96391418,235.55,235.42,2.68]
[1732101210295,10.10520136,235.54,235.45,10.37744585]
[1732101210513,7.85871282,235.55,235.45,10.37744585]
[1732101210713,2.68,235.57,235.45,10.37744585]
[1732101210884,10.10635987,235.56,235.45,10.37744585]
[1732101211088,7.85973319,235.55,235.45,10.37744585]
[1732101211287,10.10635987,235.54,235.45,10.37744585]
[1732101211714,2.68,235.57,235.45,10.37744585]
[1732101212003,2.68,235.57,235.42,2.68]
[1732101212004,26.46919461,235.56,235.42,2.68]
[1732101212219,17.96690133,235.56,235.43,10.37744585]
[1732101212400,17.96690133,235.55,235.43,10.37744585]
[1732101212610,17.96690133,235.54,235.43,10.37744585]
[1732101212794,10.10677944,235.53,235.43,10.37744585]
[1732101212991,17.96540244,235.52,235.43,10.37744585]
[1732101213232,17.9653019,235.51,235.43,10.37744585]
[1732101213397,10.10488595,235.5,235.43,10.37744585]
[1732101213796,1.3039,235.53,235.43,10.37744585]
[1732101214540,1.3039,235.53,235.4,10.37744585]
[1732101214908,9.80409889,235.53,235.4,10.37744585]
[1732101215138,9.80409889,235.53,235.39,1.2631]
[1732101215139,10.10503111,235.52,235.39,1.2631]
[1732101215308,10.5386875,235.51,235.39,1.2631]
[1732101215535,2.68,235.51,235.39,1.2631]
[1732101216397,2.68,235.51,235.4,10.37744585]
[1732101216701,2.68,235.51,235.39,1.2631]
[1732101217087,2.68,235.51,235.38,11.66334585]
[1732101218631,2.68,235.51,235.38,1.2859]
[1732101218632,17.94549915,235.5,235.38,1.2859]
[1732101218819,10.09478856,235.49,235.38,1.2859]
[1732101219106,2.68,235.51,235.35,10.37744585]
[1732101219299,17.94345187,235.5,235.35,10.37744585]
[1732101219596,10.09363906,235.49,235.35,10.37744585]
[1732101220051,10.09363906,235.48,235.35,10.37744585]
[1732101220311,10.37744585,235.49,235.27,1.2864]
[1732101220430,10.37744585,235.44,235.27,1.2864]
[1732101220915,2.68,235.51,235.25,10.37744585]
[1732101220916,10.37744585,235.41,235.25,10.37744585]
[1732101220926,2.68,235.4,235.25,10.37744585]
[1732101222195,2.68,235.4,235.22,2.5686]
[1732101222457,26.37845071,235.39,235.24,10.37744585]
[1732101222606,17.90452521,235.38,235.24,10.37744585]
[1732101222795,17.90452521,235.37,235.24,10.37744585]
[1732101223031,17.90452521,235.36,235.24,10.37744585]
[1732101223200,10.37744585,235.38,235.22,1.3041]
[1732101223504,10.05998764,235.37,235.22,10.37744585]
[1732101223997,10.05998764,235.37,235.14,3.9592]
[1732101223998,17.88362928,235.37,235.14,3.9592]
[1732101224308,7.82365815,235.36,235.24,10.37744585]
[1732101224527,10.37744585,235.38,235.24,10.37744585]
[1732101224704,10.37744585,235.35,235.14,3.9592]
[1732101224904,2.68,235.34,235.21,10.37744585]
[1732101226421,10.37744585,235.38,235.24,10.37744585]
[1732101226597,2.68,235.37,235.24,10.37744585]
[1732101230510,10.37744585,235.38,235.24,10.37744585]
[1732101230752,2.68,235.37,235.25,2.7013]
[1732101232110,2.68,235.37,235.26,10.37744585]
[1732101232302,2.68,235.37,235.25,2.7013]
[1732101233415,2.68,235.4,235.27,10.37744585]
[1732101233707,2.68,235.4,235.3,10.37744585]
[1732101233914,2.3515,235.43,235.3,10.37744585]
[1732101234109,1.5226,235.5,235.3,10.37744585]
[1732101234110,2.68,235.42,235.3,10.37744585]
[1732101234320,2.68,235.44,235.33,10.37744585]
[1732101235040,2.68,235.44,235.31,10.37744585]
[1732101236117,2.68,235.44,235.29,2.64]
[1732101236315,2.68,235.44,235.32,10.37744585]
[1732101236513,2.68,235.44,235.33,1.2733]
[1732101237615,2.68,235.44,235.32,10.37744585]
[1732101237821,2.68,235.44,235.32,11.65074585]
[1732101238211,2.64,235.47,235.35,10.37744585]
[1732101238412,2.64,235.47,235.36,2.6652]
[1732101238825,11.71084585,235.49,235.36,2.6652]
[1732101239072,2.64,235.48,235.36,2.6652]
[1732101239217,1.27,235.56,235.39,10.37744585]
[1732101239448,4.2349,235.55,235.39,10.37744585]
[1732101239614,2.86,235.54,235.39,10.37744585]
[1732101240101,2.86,235.54,235.36,5.5252]
[1732101240230,2.86,235.54,235.4,10.37744585]
[1732101240479,10.37744585,235.53,235.36,5.5252]
[1732101240784,10.37744585,235.53,235.37,10.37744585]
[1732101241863,10.37744585,235.53,235.38,10.37744585]
[1732101241871,10.37744585,235.53,235.36,2.6652]
[1732101241872,2.86,235.54,235.41,10.37744585]
[1732101242533,2.86,235.54,235.36,2.6652]
[1732101242819,2.86,235.54,235.41,10.37744585]
[1732101243023,3.04,235.57,235.44,10.37744585]
[1732101244728,4.3797,235.63,235.5,10.37744585]
[1732101244926,4.3797,235.63,235.42,4.3342]
[1732101244927,10.37744585,235.61,235.42,4.3342]
[1732101245139,4.3797,235.63,235.42,1.2942]
[1732101245140,10.37744585,235.55,235.42,1.2942]
[1732101245726,3.04,235.56,235.42,1.2942]
[1732101248645,3.04,235.56,235.46,10.37744585]
[1732101249139,1.3397,235.63,235.49,10.37744585]
[1732101249364,3.04,235.62,235.49,10.37744585]
[1732101249601,3.04,235.62,235.5,1.2778]
[1732101250281,12.71,235.83,235.52,10.37744585]
[1732101250453,10.37744585,235.67,235.52,10.37744585]
[1732101250765,3.04,235.67,235.52,10.37744585]
[1732101250952,3.04,235.67,235.52,13.41744585]
[1732101251377,3.04,235.67,235.55,10.37744585]
[1732101251750,1.3597,235.71,235.58,10.37744585]
[1732101251767,4.3997,235.71,235.58,10.37744585]
[1732101251963,10.37744585,235.7,235.55,10.37744585]
[1732101253262,25.4,235.65,235.24,17.52537084]
[1732101253479,25.4,235.65,235.35,10.37744585]
[1732101253480,10.37744585,235.52,235.35,10.37744585]
[1732101253660,10.37744585,235.48,235.31,10.37744585]
[1732101255371,10.37744585,235.48,235.34,10.37744585]
[1732101256386,14.41744585,235.51,235.34,10.37744585]
[1732101257685,11.37744585,235.51,235.37,10.37744585]
[1732101258056,11.37744585,235.51,235.4,10.37744585]
[1732101258057,1.0,235.51,235.4,10.37744585]
[1732101258074,3.04,235.53,235.41,1.3223]
[1732101258661,3.04,235.53,235.41,2.6921]
[1732101261333,3.04,235.56,235.43,10.37744585]
[1732101261935,3.04,235.63,235.46,10.37744585]
[1732101262151,10.37744585,235.63,235.46,10.37744585]
[1732101262741,10.37744585,235.63,235.41,2.6921]
[1732101262941,10.37744585,235.63,235.45,10.37744585]
[1732101263139,10.37744585,235.6,235.38,1.3356]
[1732101263356,10.37744585,235.49,235.38,1.3356]
[1732101263841,10.37744585,235.49,235.33,2.6947]
[1732101264078,10.37744585,235.46,235.33,2.6947]
[1732101264343,10.37744585,235.43,235.33,2.6947]
[1732101265081,10.37744585,235.43,235.27,10.37744585]
[1732101265253,10.37744585,235.43,235.28,4.0153]
[1732101266144,3.04,235.44,235.3,10.37744585]
[1732101266548,3.04,235.44,235.31,3.04]
[1732101273362,3.04,235.44,235.29,16.62467345]
[1732101273746,3.04,235.44,235.28,4.0153]
[1732101278953,16.62467345,235.41,235.28,4.0153]
[1732101279355,2.94,235.4,235.28,4.0153]
[1732101280477,2.94,235.4,235.28,1.352]
[1732101282959,16.62467345,235.37,235.22,2.5886]
[1732101284774,16.62467345,235.37,235.17,16.62467345]
[1732101285006,16.62467345,235.33,235.14,1.3147]
[1732101285287,2.94,235.32,235.18,0.22345]
[1732101285400,3.1911,235.32,235.18,0.22345]
[1732101285919,4.1911,235.32,235.18,0.22345]
[1732101286509,16.62467345,235.29,235.18,0.22345]
[1732101288012,1.3921,235.28,235.18,0.22345]
[1732101288767,10.40932048,235.25,235.18,0.22345]
[1732101288973,2.94,235.24,235.18,0.22345]
[1732101289681,10.40932048,235.22,235.18,0.22345]
[1732101290682,10.40932048,235.22,235.01,2.6483]
[1732101290683,10.40932048,235.19,234.93,2.94]
[1732101290899,10.40932048,235.19,235.03,10.40932048]
[1732101291281,10.40932048,235.13,235.01,1.3484]
[1732101291551,2.94,235.12,235.01,1.3484]
[1732101292065,2.94,235.11,235.01,1.3484]
[1732101292590,2.94,235.12,235.01,1.3484]
[1732101292710,1.2878,235.18,235.03,10.40932048]
[1732101292926,10.40932048,235.19,235.04,1.3769]
[1732101292927,2.94,235.17,235.04,1.3769]
[1732101293292,2.94,235.16,235.0,228.59882048]
[1732101293491,2.94,235.22,235.0,239.00814096]
[1732101293770,1.0,235.16,235.0,239.00814096]
[1732101294180,10.40932048,235.2,235.03,10.40932048]
[1732101294368,10.40932048,235.2,235.04,6.8798]
[1732101294769,10.40932048,235.2,235.06,10.40932048]
[1732101295013,10.40932048,235.23,235.06,10.40932048]
[1732101295368,10.40932048,235.16,235.04,6.8798]
[1732101296236,10.40932048,235.16,235.04,3.9398]
[1732101296395,10.40932048,235.16,235.05,2.94]
[1732101297466,10.40932048,235.16,235.06,2.94]
[1732101297968,10.40932048,235.16,235.07,2.94]
[1732101299474,10.40932048,235.13,235.07,2.94]
[1732101299774,10.40932048,235.13,235.04,2.6282]
[1732101300498,27.58991372,235.31,235.04,2.6282]
[1732101300499,10.40932048,235.19,235.04,2.6282]
[1732101301166,10.40932048,235.19,235.05,10.40932048]
[1732101301887,10.40932048,235.16,235.04,2.6282]
[1732101302203,10.40932048,235.16,235.05,2.94]
[1732101302481,10.40932048,235.16,235.04,5.5682]
[1732101303495,10.40932048,235.19,235.04,5.5682]
[1732101303976,10.40932048,235.16,235.04,5.5682]
[1732101304774,10.40932048,235.19,235.05,10.40932048]
[1732101305015,10.40932048,235.24,235.08,10.40932048]
[1732101305285,10.40932048,235.21,235.05,10.40932048]
[1732101305786,10.40932048,235.18,235.05,10.40932048]
[1732101305989,10.40932048,235.18,235.04,5.5682]
[1732101307223,10.40932048,235.15,235.04,2.6282]
[1732101307372,10.40932048,235.15,235.05,2.94]
[1732101307799,10.40932048,235.18,235.05,2.94]
[1732101308882,10.40932048,235.18,235.0,228.59882048]
[1732101309192,10.40932048,235.15,235.0,231.53882048]
[1732101309579,10.40932048,235.15,235.0,241.94814096]
[1732101310481,1.0,235.17,235.03,10.40932048]
[1732101311516,10.40932048,235.22,235.06,10.40932048]
[1732101311690,10.40932048,235.25,235.09,10.40932048]
[1732101311988,10.40932048,235.28,235.12,10.40932048]
[1732101312592,10.40932048,235.28,235.15,10.40932048]
[1732101312800,10.40932048,235.31,235.15,10.40932048]
[1732101313684,10.40932048,235.28,235.12,10.40932048]
[1732101314558,1.0,235.3,235.15,10.40932048]
[1732101315914,10.40932048,235.34,235.18,10.40932048]
[1732101316077,10.40932048,235.34,235.19,6.9652]
[1732101316386,10.40932048,235.26,235.11,2.94]
[1732101316574,10.40932048,235.26,235.12,1.3961]
[1732101316811,10.40932048,235.31,235.14,10.40932048]
[1732101317700,10.40932048,235.31,235.17,10.40932048]
[1732101317894,10.40932048,235.35,235.18,2.94]
[1732101318184,10.40932048,235.35,235.2,10.40932048]
[1732101318587,10.40932048,235.35,235.21,2.6562]
[1732101319587,10.40932048,235.35,235.22,1.3714]
[1732101320858,10.40932048,235.35,235.23,2.94]
[1732101321320,10.40932048,235.35,235.21,2.6562]
[1732101321539,10.40932048,235.31,235.21,2.6562]
[1732101321808,2.94,235.34,235.17,2.94]
[1732101321820,10.40932048,235.28,235.17,2.94]
[1732101322292,10.40932048,235.31,235.17,2.94]
[1732101324498,10.40932048,235.36,235.19,10.40932048]
[1732101324610,10.40932048,235.36,235.2,2.6784]
[1732101325152,10.40932048,235.32,235.21,2.94]
[1732101325589,10.40932048,235.28,235.09,1.3714]
[1732101326168,10.40932048,235.24,235.1,5.6184]
[1732101326177,10.40932048,235.27,235.11,10.40932048]
[1732101326188,10.40932048,235.31,235.15,10.40932048]
[1732101329015,10.40932048,235.31,235.1,2.6784]
[1732101329291,10.40932048,235.23,235.11,2.94]
[1732101330297,10.40932048,235.23,235.12,2.94]
[1732101331320,10.40932048,235.26,235.12,2.94]
[1732101332222,1.0,235.25,235.12,2.94]
[1732101332722,10.40932048,235.23,235.1,2.6784]
[1732101333187,10.40932048,235.2,235.1,5.6984]
[1732101334664,10.40932048,235.2,235.1,3.02]
[1732101334837,10.40932048,235.2,235.04,10.40932048]
[1732101335234,10.40932048,235.2,235.05,3.02]
[1732101335339,10.40932048,235.17,235.05,3.02]